Cogmind - Beta 13 @@@ ROGUE MODE // 2024.03.14 @ 22:21:13 Player: Cheeriohz Result: Destroyed by G-47 Trooper with Particle Gun Performance ------------- Evolutions (2) 1000 Regions Visited (7) 1400 Robots Destroyed (41) 205 Value Destroyed (1063) 1063 Prototype IDs (6) 120 Alien Tech Used (0) 0 Bonus (222) 222 TOTAL SCORE: 4010 Bonus ------- High Alert Combat Kills 6 Aligned with FarCom 300 Friendly Fire -84 Cogmind --------- Core Integrity 0/550 Matter 208/300 Energy 99/100 System Corruption 5% Temperature Cool (18) Movement Core (50) Location -8/Materials Parts ------- > --- POWER (1) -------- (None) > --- PROPULSION (3) --- (None) > --- UTILITY (5) ------ (None) > --- WEAPON (2) ------- (None) > --- INVENTORY (5) ---- Large Storage Unit Superbattery (1500) Small Matter Pod (50) Supersonic Drone Bay (1/1) Field Laser Peak State ------------ > --- POWER ------------ Heavy Ion Engine > --- PROPULSION ------- Wheel Armored Wheel > --- UTILITY ---------- Heat Sink Large Storage Unit Improved Terrain Scanner Recoil Stabilizer > --- WEAPON ----------- Firepult > --- INVENTORY -------- Medium Storage Unit Large Storage Unit Superbattery Small Matter Pod Supersonic Drone Bay Particle Gun Beamcaster [Rating: 36] Favorites ----------- Power Heavy Ion Engine Engine Heavy Ion Engine Propulsion Wheel Treads Light Treads Leg Aluminum Leg Wheel Wheel Utility Large Storage Unit Device Heat Sink Storage Large Storage Unit Processor Transport Network Coupler Protection Light Armor Plating Weapon Heavy Assault Rifle Energy Gun Medium Laser Energy Cannon Firepult Ballistic Gun Heavy Assault Rifle Ballistic Cannon Improved Light Cannon Build | -11 -10 -10 -9 -9 -9 -8 -8 ------- Run | Yrd Mat Min Mat Min Exi Min Mat Slots Evolved 4 | . . . 2 . . . 2 Power . | . . . . . . . . Propulsion 1 | . . . . . . . 1 Utility 3 | . . . 2 . . . 1 Weapon . | . . . . . . . . Parts Attached 42 | . 5 3 10 . 14 5 5 Power 3 | . . 1 1 . . 1 . Engine 3 | . . 1 1 . . 1 . Core . | . . . . . . . . Reactor . | . . . . . . . . Propulsion 13 | . 2 1 3 . 6 1 . Treads 2 | . . . . . 2 . . Leg . | . . . . . . . . Wheel 11 | . 2 1 3 . 4 1 . Hover . | . . . . . . . . Flight . | . . . . . . . . Utility 15 | . 3 1 3 . 4 1 3 Device 6 | . 1 . 1 . 1 1 2 Storage 6 | . 2 . . . 3 . 1 Processor 1 | . . . 1 . . . . Hackware . | . . . . . . . . Protection 2 | . . 1 1 . . . . Artifact . | . . . . . . . . Weapon 11 | . . . 3 . 4 2 2 Energy Gun 5 | . . . 1 . 1 1 2 Energy Cannon 2 | . . . . . 1 1 . Ballistic Gun 2 | . . . 1 . 1 . . Ballistic Cannon 2 | . . . 1 . 1 . . Launcher . | . . . . . . . . Special Weapon . | . . . . . . . . Impact Weapon . | . . . . . . . . Slashing Weapon . | . . . . . . . . Piercing Weapon . | . . . . . . . . Special Melee Weapon . | . . . . . . . . Unidentified Prototypes 4 | . . . 1 . 3 . . Parts Lost 21 | . . 2 2 . 9 . 8 Power 2 | . . . . . 1 . 1 Propulsion 6 | . . . 1 . 3 . 2 Utility 5 | . . 1 1 . 1 . 2 Weapon 8 | . . 1 . . 4 . 3 Highest Loss Streak 9 | . . 2 2 . 9 . 8 To Critical Strikes 7 | . . . . . 6 . 1 Average Slot Usage (%) 88 | . 96 99 89 100 92 62 49 Engine 11 | . 14 14 11 11 10 10 6 Leg 3 | . 17 . . . . . . Wheel 19 | . 10 28 21 22 20 21 12 Device 9 | . 11 13 7 11 5 8 15 Storage 14 | . 14 14 11 11 20 11 8 Processor 2 | . . . 7 11 3 . . Protection 5 | . . . 10 11 9 . . Energy Gun 13 | . 28 27 11 11 4 . 1 Energy Cannon 1 | . . . . . . 11 5 Ballistic Gun 5 | . . . 6 11 15 . . Naked Turns 41 | . . . . . . . 41 Heaviest Build 67 | 11 27 28 41 40 67 51 53 Greatest Support 40 | 20 20 20 20 20 40 22 10 Greatest Overweight (x) 5 | . 1 1 2 1 3 5 5 Average Overweight (x) 1 | . . 1 1 1 1 4 2 Largest Inventory Capacity 15 | 8 15 15 15 15 15 15 15 Average Capacity 13 | 8 8 15 15 15 15 15 12 Most Carried 15 | 8 12 15 15 15 15 11 7 Average Carried 11 | 6 8 12 12 15 14 7 6 Final Capacity 15 | 8 15 15 15 15 15 15 5 Final Carried 15 | 8 12 9 15 15 12 7 5 Class Distribution -------------------- 70% | Mutant 29% | Scavenger-Mutant Dominant Class ---------------- Mutant | -10/Materials Mutant | -10/Mines Scavenger-Mutant | -9/Materials Scavenger-Mutant | -9/Mines Mutant | -9/Exiles Mutant | -8/Mines Mutant | -8/Materials Resources | -11 -10 -10 -9 -9 -9 -8 -8 ----------- Run | Yrd Mat Min Mat Min Exi Min Mat Matter Collected 715 | 200 80 47 197 . . 119 72 Remotely . | . . . . . . . . Salvage Created 1456 | 118 331 15 385 . 83 183 341 Parts 81 | 4 26 2 23 . . 7 19 Haulers Intercepted 3 | . 2 . 1 . . . . Recyclers Shooed . | . . . . . . . . Parts Field Recycled . | . . . . . . . . Retrieved Matter . | . . . . . . . . Parts Self-Destructed . | . . . . . . . . Prevented . | . . . . . . . . Kills | -11 -10 -10 -9 -9 -9 -8 -8 ------- Run | Yrd Mat Min Mat Min Exi Min Mat Combat Hostiles Destroyed 38 | . 10 . 8 . 5 6 9 Guns 17 | . 10 . 6 . . . 1 Cannons 7 | . . . 2 . 1 3 1 AOE 12 | . . . . . 3 2 7 Classes Destroyed 10 | 2 3 1 2 . 1 . 1 Worker 1 | . . 1 . . . . . Tunneler 2 | 1 . . . . . . 1 Hauler 3 | . 2 . 1 . . . . Recycler 2 | 1 . . . . . . 1 Swarmer 15 | . 6 . . . . 3 6 Grunt 14 | . 4 . 5 . . 3 2 Brawler 1 | . . . 1 . . . . Duelist 1 | . . . . . . . 1 Sentry 2 | . . . 2 . . . . Assembled 5 | . . . . . 5 . . Best Kill Streak 7 | 2 3 1 3 . 5 3 7 Combat Bots Only 6 | . 3 . 3 . 5 3 6 Max Kills in Single Turn 3 | 1 2 1 1 . 2 2 3 Gunslinging 1 | . 1 . . . . . . Exploded 3 | . . . . . 2 1 3 Melee . | . . . . . . . . Uniques/NPCs Destroyed . | . . . . . . . . Combat | -11 -10 -10 -9 -9 -9 -8 -8 -------- Run | Yrd Mat Min Mat Min Exi Min Mat Hostile Shots Fired 278 | . 51 . 43 . 79 17 88 Missed 80 | . 13 . 10 . 10 6 41 Damage Taken 3404 | . 336 103 403 . 1476 141 945 Core 1004 | . 56 11 64 . 301 10 562 Absorbed by Shields . | . . . . . . . . Regen/Repaired (Parts) 37 | . . . 37 . . . . Core Remaining (%) 59 | 100 . 73 . . . 6 . Volleys Fired 93 | 5 30 1 31 . 11 6 9 Largest 2 | 2 2 2 2 . 2 1 2 Hottest 250 | 90 90 90 114 . 250 250 250 Shots Fired 163 | 10 60 2 59 . 15 6 11 Gun 135 | 10 60 2 45 . 11 1 6 Cannon 28 | . . . 14 . 4 5 5 Launcher . | . . . . . . . . Special . | . . . . . . . . Kinetic 39 | . . . 31 . 8 . . Thermal 124 | 10 60 2 28 . 7 6 11 Explosive . | . . . . . . . . Electromagnetic . | . . . . . . . . Robot Hit Streak 10 | 3 10 10 9 . 4 2 3 Robot Miss Streak 6 | 2 3 . 4 . 1 6 2 Penetration Max . | . . . . . . . . Secondary Targets 4 | . 3 . 1 . . . . Max Gunslinging Chain 1 | . 1 . 1 . . . . Shots Hit Robots 108 | 6 42 1 38 . 9 5 7 Core Hits 66 | 3 18 1 13 . 8 8 15 Critical Kills . | . . . . . . . . Critical Parts Destroyed . | . . . . . . . . Critical Strikes 5 | . 1 . 4 . . . . Burn 5 | . 1 . 4 . . . . Melee Attacks . | . . . . . . . . Impact . | . . . . . . . . Slashing . | . . . . . . . . Piercing . | . . . . . . . . Sneak Attacks . | . . . . . . . . Combat Hostiles . | . . . . . . . . Follow-up Attacks . | . . . . . . . . Damage Inflicted 2671 | 70 500 12 714 . 329 338 708 Guns 1403 | 70 500 12 602 . 98 22 99 Cannons 362 | . . . 112 . 65 124 61 Explosions 868 | . . . . . 166 192 510 Melee . | . . . . . . . . Ramming 38 | . . . . . . . 38 Kinetic 407 | . . . 311 . 96 . . Thermal 2226 | 70 500 12 403 . 233 338 670 Explosive . | . . . . . . . . Electromagnetic . | . . . . . . . . Impact . | . . . . . . . . Slashing . | . . . . . . . . Piercing . | . . . . . . . . Highest Corruption 5 | . 3 4 . . 5 5 5 Average Corruption 3 | . 2 3 . . 5 5 5 Corruption Purged . | . . . . . . . . Corruption Blocked . | . . . . . . . . Effects 16 | . 1 9 . . 2 3 1 Message Errors 6 | . . 4 . . . 1 1 Matter Fused 2 | . . 1 . . 1 . . Heat Flow Errors 3 | . . 1 . . . 2 . Energy Discharges 2 | . . 1 . . 1 . . Data Loss (minor) 2 | . . 2 . . . . . Data Loss (major) 1 | . 1 . . . . . . Overload Shots . | . . . . . . . . Overflow Damage 86 | . . . . . 18 . 68 Projectiles 9 | . . . . . 9 . . Explosions 77 | . . . . . 9 . 68 Melee . | . . . . . . . . Knockbacks 1 | . . . 1 . . . . Impact . | . . . . . . . . Kinetic 1 | . . . 1 . . . . Secondary . | . . . . . . . . Self-Inflicted Damage 251 | . . . . . 65 22 164 Shots 16 | . . . . . 7 3 6 Rammed 6 | . . . . . . . 6 Targets Rammed 6 | . . . . . . . 6 Kicked . | . . . . . . . . Crushed . | . . . . . . . . Highest Temperature 778 | 102 252 119 314 . 778 547 585 Average Temperature 181 | 46 92 44 123 . 461 275 269 Received Heat Transfer 613 | . 72 . 216 . 100 54 171 Effects 27 | . . . 3 . 12 6 6 Shutdowns 4 | . . . . . 2 1 1 Energy Bleed 4 | . . . 1 . 1 1 1 Interference 6 | . . . 2 . 3 1 . Matter Decay 4 | . . . . . 2 1 1 Short Circuit 3 | . . . . . 1 2 . Damage (major) 2 | . . . . . . . 2 Damage (core) 4 | . . . . . 3 . 1 Siege Activations . | . . . . . . . . Robots Corrupted . | . . . . . . . . Combat Hostiles . | . . . . . . . . Parts Fried . | . . . . . . . . Impact Corruptions . | . . . . . . . . Robots Melted 2 | . . . . . 1 1 . Combat Hostiles 2 | . . . . . 1 1 . Parts Melted 22 | . 3 . 2 . . 6 11 Heat Transferred 7382 | 186 1413 37 1036 . 1218 1557 1935 Parts Sabotaged . | . . . . . . . . Parts Stolen . | . . . . . . . . Parts Stripped . | . . . . . . . . Power Chain Reactions . | . . . . . . . . Alert | -11 -10 -10 -9 -9 -9 -8 -8 ------- Run | Yrd Mat Min Mat Min Exi Min Mat Peak Influence 580 | 10 295 47 244 16 . 177 580 Initial 68 | . 6 42 10 16 . . 68 Average 125 | 7 126 44 121 16 . 150 355 Maximum Alert Level 2 | . 1 . 1 . . . 2 Low Security (%) 80 | 100 69 100 84 100 . 100 28 Level 1 14 | . 30 . 15 . . . 24 Level 2 4 | . . . . . . . 47 Level 3 . | . . . . . . . . Level 4 . | . . . . . . . . Level 5 . | . . . . . . . . High Security . | . . . . . . . . Max Security . | . . . . . . . . Squads Dispatched 7 | . 2 . 1 . . . 4 Investigation 1 | . 1 . . . . . . Extermination . | . . . . . . . . Reinforcement 4 | . 1 . 1 . . . 2 Assault 1 | . . . . . . . 1 Garrison 1 | . . . . . . . 1 Intercept . | . . . . . . . . Searches Triggered . | . . . . . . . . Construction Impeded . | . . . . . . . . Haulers Reinforced . | . . . . . . . . Active Scanning Responses . | . . . . . . . . Cargo Convoy Interrupts . | . . . . . . . . Stealth | -11 -10 -10 -9 -9 -9 -8 -8 --------- Run | Yrd Mat Min Mat Min Exi Min Mat Distress Signals 4 | . . . 3 . . . 1 Communications Jammed . | . . . . . . . . Distress Signals . | . . . . . . . . Times Spotted 74 | . 12 . 11 . 8 6 37 Peak Tracking Total 22 | . 4 . 5 . 9 3 22 Tactical Retreats 3 | . . . 1 . . . 2 Traps | -11 -10 -10 -9 -9 -9 -8 -8 ------- Run | Yrd Mat Min Mat Min Exi Min Mat Traps Triggered 4 | . 3 1 . . . . . Indirectly . | . . . . . . . . Trap Hack Attempts . | . . . . . . . . Triggered . | . . . . . . . . Disarmed . | . . . . . . . . Reprogrammed . | . . . . . . . . Reused . | . . . . . . . . Traps Extracted . | . . . . . . . . Installed . | . . . . . . . . Triggered . | . . . . . . . . Most Traps Carried 3 | . . 3 . . . . . Machines | -11 -10 -10 -9 -9 -9 -8 -8 ---------- Run | Yrd Mat Min Mat Min Exi Min Mat Machines Disabled 9 | . . . 1 . 3 1 4 Max in Single Turn 3 | . . . 1 . 1 1 3 Garrison Access 1 | . . . . . . . 1 Machines Repaired . | . . . . . . . . Machines Dismantled . | . . . . . . . . Machines Sabotaged . | . . . . . . . . Overloaded Fab Kills . | . . . . . . . . Hacking | -11 -10 -10 -9 -9 -9 -8 -8 --------- Run | Yrd Mat Min Mat Min Exi Min Mat Machines Accessed 8 | . 1 1 4 . . . 2 Terminals 5 | . 1 . 3 . . . 1 Fabricators . | . . . . . . . . Repair Stations 1 | . . . 1 . . . . Recycling Units . | . . . . . . . . Scanalyzers . | . . . . . . . . Garrison Access 1 | . . . . . . . 1 Total Hacks 18 | . 3 1 10 . . . 4 Successful 9 | . 3 1 5 . . . . Failed 9 | . . . 5 . . . 4 Catastrophic 1 | . . . . . . . 1 Database Lockouts . | . . . . . . . . Manual 9 | . 1 . 5 . 1 . 2 Terminals 12 | . 3 . 7 . . . 2 Fabricators . | . . . . . . . . Repair Stations 3 | . . . 3 . . . . Recycling Units . | . . . . . . . . Scanalyzers . | . . . . . . . . Garrison Access 2 | . . . . . . . 2 Terminal Hacks 5 | . 2 1 2 . . . . Prototype ID Bank 1 | . 1 . . . . . . Open Door 1 | . . 1 . . . . . Terminal Index 1 | . . . 1 . . . . Alert Level 1 | . . . 1 . . . . Zone Layout 1 | . 1 . . . . . . Fabricator Hacks . | . . . . . . . . Repair Station Hacks 2 | . . . 2 . . . . Scan Component 1 | . . . 1 . . . . Repair 1 | . . . 1 . . . . Recycling Unit Hacks . | . . . . . . . . Scanalyzer . | . . . . . . . . Garrison Access Hacks . | . . . . . . . . Unauthorized Hacks 2 | . 1 . 1 . . . . Terminals 2 | . 1 . 1 . . . . Botnet 2 | . 1 . 1 . . . . Fabricators . | . . . . . . . . Repair Stations . | . . . . . . . . Recycling Units . | . . . . . . . . Scanalyzers . | . . . . . . . . Garrison Access . | . . . . . . . . Data Cores Recovered . | . . . . . . . . Used . | . . . . . . . . Hacking Detections 6 | . . . 4 . . . 2 Full Trace Events . | . . . . . . . . Feedback Events . | . . . . . . . . Feedback Blocked . | . . . . . . . . Robot Schematics Acquired . | . . . . . . . . Robots Built . | . . . . . . . . Authchips . | . . . . . . . . Time . | . . . . . . . . Total Robot Build Rating . | . . . . . . . . Part Schematics Acquired . | . . . . . . . . Parts Built . | . . . . . . . . Authchips . | . . . . . . . . Time . | . . . . . . . . Total Part Build Rating . | . . . . . . . . Parts Repaired 1 | . . . 1 . . . . Time 26 | . . . 26 . . . . Parts Recycled . | . . . . . . . . Recycled Matter . | . . . . . . . . Retrieved Matter . | . . . . . . . . Retrieved Components . | . . . . . . . . Parts Scanalyzed . | . . . . . . . . Part Schematics Acquired . | . . . . . . . . Parts Damaged . | . . . . . . . . Bothacking | -11 -10 -10 -9 -9 -9 -8 -8 ------------ Run | Yrd Mat Min Mat Min Exi Min Mat Used RIF Installer . | . . . . . . . . Robots Hacked . | . . . . . . . . Non-combat . | . . . . . . . . Combat . | . . . . . . . . Robot Hacks Applied . | . . . . . . . . Relay Couplers Released 4 | . . . . . . . 4 Machine Destruction 4 | . . . . . . . 4 Fabnet Peak Effective % . | . . . . . . . . Robots Rewired . | . . . . . . . . Allies Hacked . | . . . . . . . . Hacks Repelled . | . . . . . . . . Allies | -11 -10 -10 -9 -9 -9 -8 -8 -------- Run | Yrd Mat Min Mat Min Exi Min Mat Total Allies . | . . . . . . . . Largest Group . | . . . . . . . . Highest-Rated Group . | . . . . . . . . Highest-Rated Ally . | . . . . . . . . Total Orders . | . . . . . . . . Ally Attacks . | . . . . . . . . Total Damage . | . . . . . . . . Kills . | . . . . . . . . Allies Corrupted . | . . . . . . . . Allies Melted . | . . . . . . . . Intel | -11 -10 -10 -9 -9 -9 -8 -8 ------- Run | Yrd Mat Min Mat Min Exi Min Mat Robot Analysis Total . | . . . . . . . . Derelict Logs Recovered 3 | . . 3 . . . . . Drone Launches . | . . . . . . . . Drone Recoveries . | . . . . . . . . Exploration | -11 -10 -10 -9 -9 -9 -8 -8 ------------- Run | Yrd Mat Min Mat Min Exi Min Mat Turns Passed 2284 | 42 429 363 454 73 582 167 174 Spaces Moved 1774 | 21 289 360 305 73 496 93 137 Core 75 | . . . . . . . 75 Treads 4 | . . . . . 4 . . Legs 172 | 21 151 . . . . . . Wheels 1523 | . 138 360 305 73 492 93 62 Hover . | . . . . . . . . Flight . | . . . . . . . . Fastest Speed 50 | 120 80 95 95 95 85 115 50 Average Speed 103 | 120 102 95 95 95 107 148 96 Slowest Speed 400 | 120 120 95 110 95 400 155 155 Overloaded Moves . | . . . . . . . . Propulsion Burnouts . | . . . . . . . . Robots Hopped . | . . . . . . . . Cave-ins Triggered . | . . . . . . . . Exploration Rate (%) 37 | 3 56 71 26 24 67 30 22 Regions Visited 7 Branch Regions 4 Pre-discovered Areas 1 | . . 1 . . . . . Known Exits Taken 2 | . . . 1 . . 1 . Unknown Exits Taken 5 | 1 1 1 . 1 1 . . Scrap Searched 2 | . . 1 . . . 1 . Spaces Dug . | . . . . . . . . Terrain Destroyed 105 | . . . . . 9 28 68 Melee . | . . . . . . . . Projectile 5 | . . . . . 1 3 1 AOE 100 | . . . . . 8 25 67 Terrain Rammed . | . . . . . . . . Walls Destroyed . | . . . . . . . . Machines Disabled . | . . . . . . . . Actions | -11 -10 -10 -9 -9 -9 -8 -8 --------- Run | Yrd Mat Min Mat Min Exi Min Mat Total 2065 | 27 361 381 409 76 532 118 161 Wait 95 | . 26 7 48 4 . 10 . Move 1767 | 20 288 359 304 72 495 92 137 Hop . | . . . . . . . . Pick Up 27 | 2 7 3 10 . 3 1 1 Fast Attach 10 | . 1 1 5 . 1 . 2 Attach 18 | . . . 3 . 7 5 3 Detach 10 | . . . 2 . 5 2 1 Swap 14 | . 4 2 2 . 6 . . Drop 25 | . 5 8 4 . 4 2 2 Fire 93 | 5 30 1 31 . 11 6 9 Melee . | . . . . . . . . Ram 6 | . . . . . . . 6 Kick . | . . . . . . . . Crush . | . . . . . . . . Escape Stasis . | . . . . . . . . Rewire . | . . . . . . . . Trap . | . . . . . . . . Miscellaneous . | . . . . . . . . Route ------- -11/Scrapyard -10/Materials (discovered 2 exits: *Mat / *Min) -10/Mines -9/Materials (discovered 2 exits: *Mat / *Min) -9/Mines (discovered 2 exits: *Mat / *Exi) -9/Exiles -8/Mines -8/Materials (discovered 1 exit: [*Fac]) History --------- Turn | Location | Event 1 | -11/Scrapyard | Discovered new exit (range 3) 43 | -11/Scrapyard | Entered Materials 312 | -10/Materials | Build established: Mutant 375 | -10/Materials | Discovered new exit (range 13) 441 | -10/Materials | Discovered new exit (range 16) 472 | -10/Materials | Entered Mines 473 | -10/Mines | Learned location of Storage (-7) 719 | -10/Mines | Learned 8 Materials zone layouts 722 | -10/Mines | Found a hidden stash of uninstalled traps 733 | -10/Mines | Learned Materials security intel 781 | -10/Mines | Discovered new exit (range 13) 795 | -10/Mines | Learned Materials trap positions 817 | -10/Mines | Met a Derelict who couldn't figure out how to use a Trap Extractor 835 | -10/Mines | Entered Materials 835 | -9/Materials | Evolved 2 slots: Utility x2 836 | -9/Materials | Identified exit to Mines 836 | -9/Materials | Identified exit to Materials 837 | -9/Materials | Loaded intel: 10 trap records 906 | -9/Materials | Repaired Wheel 1254 | -9/Materials | Build established: Scavenger-Mutant 1289 | -9/Materials | Entered Mines 1339 | -9/Mines | Discovered exit to Materials (range 15) 1358 | -9/Mines | Deemed a non-threat by the Exiles lab entrance 1358 | -9/Mines | Discovered new exit (range 5) 1362 | -9/Mines | Entered Exiles 1384 | -9/Exiles | Met 8R-AWN 1401 | -9/Exiles | Met EX-HEX 1432 | -9/Exiles | Met EX-BIN 1470 | -9/Exiles | Aligned with FarCom system 1471 | -9/Exiles | Given EX-Vault access code 1494 | -9/Exiles | Opened EX-Vault 1500 | -9/Exiles | Found Prototype Energy Cannon 1502 | -9/Exiles | Found Prototype Storage 1508 | -9/Exiles | Found Prototype Device 1530 | -9/Exiles | Warned to stay clear of 0b10 Research branches 1555 | -9/Exiles | Identified Superbattery 1556 | -9/Exiles | Identified Supersonic Drone Bay 1613 | -9/Exiles | Discovered new exit (range 14) 1714 | -9/Exiles | Met EX-DEC 1877 | -9/Exiles | Attacked by the Exiles 1898 | -9/Exiles | Identified Firepult 1907 | -9/Exiles | Core integrity fell below 50% 1922 | -9/Exiles | Core integrity fell below 20% 1943 | -9/Exiles | Build established: Mutant 1944 | -9/Exiles | Stole three prototypes: Superbattery, Supersonic Drone Bay, Firepult 1944 | -9/Exiles | Entered Mines 1962 | -8/Mines | Lost 9 parts (1p3n1u4w) 2104 | -8/Mines | Discovered exit to Materials (range 4) 2111 | -8/Mines | Entered Materials 2111 | -8/Materials | Evolved 2 slots: Propulsion x1, Utility x1 2157 | -8/Materials | Garrison activated, responded to threat 2266 | -8/Materials | Lost 8 parts (1p2n2u3w) 2268 | -8/Materials | Core integrity fell below 50% 2280 | -8/Materials | Core integrity fell below 20% 2282 | -8/Materials | Discovered new exit (range 16) 2285 | -8/Materials | Destroyed by G-47 Trooper with Particle Gun Last Messages --------------- 02235_ Wheel destroyed. 02235_ Hvy. Ion Engine destroyed. 02236_ Slammed into L-31 Rogue. 02237_ Imp. Terrain Scanner severed. 02238_ K-01 Serf collects debris. 02244_ Dropped Lrg. Storage Unit. 02245_ K-01 Serf collects debris. 02248_ Slammed into W-25 Informer. 02249_ K-01 Serf collects debris. 02250_ O-16 Technician: "IFF HANDSHAKE FAILED. SECURING TERMINAL." 02251_ W-25 Informer sends out distress signal. 02254_ ALERT: Hostiles spotted, dispatching reinforcements to Terminal M005. 02256_ MPGJJAHIE#DSV#WMJDUNO9SR